bitfinex-derivatives/quotes_ETHF0:USTF0_20250730
["timestamp","ask_amount","ask_price","bid_price","bid_amount"]
[1753850406243,0.6863,3802.3,3802.2,1.7433]
[1753850406542,39.39166,3803.9,3802.5,1.439]
[1753850406543,0.52594,3803.3,3802.5,1.439]
[1753850406747,1.4667,3803.2,3803.1,0.9512]
[1753850406948,1.1605,3803.2,3803.1,1.439]
[1753850407150,1.4667,3803.2,3803.1,0.9871]
[1753850407454,1.4667,3802.9,3802.8,1.4471]
[1753850407951,1.2728,3803.3,3803.2,0.6828]
[1753850408253,1.4667,3803.3,3803.2,1.7433]
[1753850409847,1.1605,3803.3,3803.2,1.7433]
[1753850410556,0.3948,3803.3,3803.2,1.7433]
[1753850411256,0.6854,3803.9,3803.8,1.439]
[1753850411453,0.2,3803.9,3803.8,1.7433]
[1753850411854,0.2,3803.9,3803.8,7.00196035]
[1753850413155,0.3948,3804.9,3804.8,1.7433]
[1753850413356,1.1605,3805.2,3805.1,0.6828]
[1753850413557,1.1605,3805.2,3805.1,1.7433]
[1753850413861,0.3948,3805.2,3805.1,1.7433]
[1753850414457,1.1605,3805.2,3805.1,1.7433]
[1753850415361,0.3948,3805.2,3805.1,6.99933458]
[1753850415563,1.4667,3805.6,3805.5,0.6828]
[1753850415759,1.4667,3805.6,3805.5,1.7433]
[1753850415955,1.1605,3805.6,3805.5,1.4471]
[1753850416264,1.1605,3805.6,3805.5,1.7433]
[1753850417160,1.4728,3805.9,3805.8,1.7433]
[1753850417364,1.1666,3805.9,3805.8,1.7433]
[1753850417866,1.3605,3805.9,3805.8,1.7433]
[1753850422169,0.2,3805.9,3805.8,1.7433]
[1753850422368,1.3831,3805.9,3805.8,6.97916785]
[1753850422768,0.5996,3805.9,3805.8,6.97916785]
[1753850422966,0.2,3805.9,3805.8,6.97916785]
[1753850423974,1.3831,3805.9,3805.8,6.97916785]
[1753850425972,1.6811,3805.9,3805.8,6.02586785]
[1753850426370,1.6811,3805.9,3805.8,6.97916785]
[1753850427571,1.6811,3805.9,3805.8,7.50475785]
[1753850428169,1.3831,3805.9,3805.8,7.50475785]
[1753850429873,1.3831,3805.9,3805.8,6.97916785]
[1753850430477,0.2,3805.9,3805.8,6.97916785]
[1753850431280,0.4056,3805.9,3805.8,6.97916785]
[1753850431579,1.0894,3805.9,3805.8,6.97916785]
[1753850432879,1.0894,3805.9,3805.8,7.5533674]
[1753850433380,2.20667,3805.9,3805.8,5.25506785]
[1753850433581,0.4898,3805.8,3804.7,5.25506785]
[1753850433778,7.08813955,3805.9,3804.8,1.7247]
[1753850433779,2.00681,3804.9,3804.8,1.7247]
[1753850434080,2.00681,3804.9,3804.8,6.97976785]
[1753850434281,1.4811,3804.9,3804.8,6.97976785]
[1753850434682,1.1831,3804.9,3804.8,7.5539674]
[1753850434981,1.1831,3804.9,3804.8,6.97976785]
[1753850436381,1.70881,3804.9,3804.8,6.97976785]
[1753850436580,1.70881,3804.9,3804.8,6.22626785]
[1753850436776,2.00681,3804.9,3804.8,6.22626785]
[1753850436977,2.00681,3804.9,3804.8,6.68866785]
[1753850437177,2.00681,3804.9,3804.8,5.25506785]
[1753850437573,1.70891,3804.2,3804.1,1.7247]
[1753850437777,0.6933,3803.9,3803.8,1.2338]
[1753850437982,1.1831,3803.9,3803.8,1.4336]
[1753850438283,1.4811,3803.9,3803.8,1.7247]
[1753850438473,1.4811,3803.9,3803.5,5.256449]
[1753850438474,0.2966,3803.8,3803.5,5.256449]
[1753850438680,1.1831,3803.6,3803.5,6.981149]
[1753850439676,0.3996,3803.6,3803.5,6.981149]
[1753850439880,0.194,3803.6,3803.5,6.981149]
[1753850441079,0.3996,3803.6,3803.5,6.981149]
[1753850441279,1.1831,3803.6,3803.5,6.981149]
[1753850441581,1.1831,3803.6,3803.5,5.256449]
[1753850441779,1.4811,3803.6,3803.5,6.690049]
[1753850441985,1.4811,3803.6,3803.5,6.981149]
[1753850442486,1.1831,3803.6,3803.5,6.981149]
[1753850446390,0.3996,3803.6,3803.5,7.507059]
[1753850446787,0.3996,3803.6,3803.5,6.981149]
[1753850447991,0.1932,3803.9,3803.5,6.473939]
[1753850448297,0.8906,3803.8,3803.7,1.7247]
[1753850449088,0.21121791,3804.4,3803.7,1.7247]
[1753850449290,1.51709,3804.4,3804.3,0.2796]
[1753850449494,1.51716,3803.8,3803.7,5.2579691]
[1753850449691,1.51716,3803.8,3803.7,0.4744]
[1753850449890,1.4823,3803.8,3803.7,6.98183985]
[1753850452087,1.1843,3803.8,3803.7,6.98183985]
[1753850453385,1.00551,3804.2,3804.1,0.4949]
[1753850453593,1.20871,3804.2,3804.1,1.716]
[1753850453791,1.50141,3804.2,3804.1,1.716]
[1753850453992,1.99101,3804.2,3804.1,1.716]
[1753850454494,0.52585,3803.9,3803.8,0.9348]
[1753850454693,1.99105,3803.9,3803.8,1.716]
[1753850454896,1.99105,3803.9,3803.8,6.97341624]
[1753850455996,1.1725,3803.9,3803.8,6.97341624]
[1753850456591,1.4652,3803.9,3803.8,6.97341624]
[1753850456794,1.1725,3803.2,3803.0,1.10082117]
[1753850456998,0.9756,3803.2,3803.1,1.432]
[1753850457196,0.9756,3803.2,3803.1,5.94643088]
[1753850457495,0.9756,3803.2,3803.1,0.7789]
[1753850457796,1.4652,3803.2,3803.1,0.7789]
[1753850458395,1.4652,3803.2,3803.1,1.2148]
[1753850458588,1.4652,3803.2,3803.1,1.716]
[1753850459198,1.4652,3803.2,3803.1,0.284]
[1753850460399,1.4652,3803.2,3803.1,1.716]
[1753850461198,1.4652,3803.2,3803.1,0.9726]
[1753850461398,1.4652,3803.2,3803.1,0.7789]
[1753850461600,1.1725,3802.7,3802.6,1.0274]
[1753850461800,1.1725,3802.7,3802.6,1.716]
[1753850462001,1.1725,3802.7,3802.6,6.97479862]
[1753850462304,1.1725,3802.7,3802.6,1.716]
[1753850462506,1.1725,3802.7,3802.6,6.97479862]
[1753850463599,1.1725,3802.7,3802.6,5.54279862]
[1753850463600,1.4652,3802.7,3802.6,5.54279862]
[1753850463799,1.4652,3802.7,3802.6,7.19332862]
[1753850464008,1.1725,3802.7,3802.6,6.97479862]
[1753850466208,0.8857,3802.7,3802.6,6.97479862]
[1753850467208,0.3961,3802.7,3802.6,6.97479862]
[1753850469407,0.8857,3802.7,3802.6,6.97479862]
[1753850470007,0.1929,3802.7,3802.6,6.97479862]
[1753850470307,0.8857,3802.9,3802.8,1.716]
[1753850471006,0.6829,3802.7,3802.6,5.25879862]
[1753850471309,1.4652,3802.7,3802.6,6.97479862]
[1753850472097,1.1725,3802.7,3802.6,6.97479862]
[1753850474206,1.1725,3802.7,3802.6,5.25879862]
[1753850474405,1.4652,3802.7,3802.6,5.54279862]
[1753850474709,1.4652,3802.7,3802.6,6.97479862]
[1753850475599,1.1725,3802.7,3802.6,6.97479862]
[1753850475802,0.8857,3802.7,3802.6,6.97479862]
[1753850476909,0.52601,3802.8,3802.6,6.47341862]
[1753850477104,0.52601,3802.8,3802.7,1.716]
[1753850477304,1.41171,3802.8,3802.7,1.716]
[1753850477510,1.69851,3802.8,3802.7,1.716]
[1753850477707,0.2927,3802.6,3801.9,1.0274]
[1753850477908,0.3961,3802.0,3801.9,1.65063]
[1753850478104,0.8857,3802.0,3801.9,6.90998178]
[1753850478314,0.2032,3802.0,3801.9,1.65063]
[1753850478510,1.1725,3802.0,3801.9,7.50148178]
[1753850478813,1.4652,3802.7,3802.6,1.716]
[1753850479011,1.69852,3802.7,3802.6,1.716]
[1753850479207,1.69849,3803.0,3802.9,1.716]
[1753850480312,1.99119,3803.0,3802.9,1.4085]
[1753850480517,1.00577,3802.4,3802.3,1.716]
[1753850480706,1.50167,3802.4,3802.3,1.716]
[1753850480902,1.209,3802.1,3802.0,1.716]
[1753850481208,1.1725,3802.1,3802.0,6.97507519]
[1753850481410,1.4813,3802.1,3802.0,6.97507519]
[1753850481812,0.8857,3802.1,3802.0,7.55042164]
[1753850482315,1.17,3802.1,3802.0,7.55042164]
[1753850482515,1.17,3802.1,3802.0,8.07653164]
[1753850482817,1.17,3802.1,3802.0,7.55042164]
[1753850483210,0.8857,3802.1,3802.0,7.55042164]
[1753850483409,0.3961,3802.1,3802.0,7.55042164]
[1753850483712,1.155,3802.4,3802.3,1.7302]
[1753850484012,1.4638,3802.4,3802.3,1.4396]
[1753850484217,1.4638,3802.4,3802.3,0.7966]
[1753850484713,1.4638,3802.4,3802.3,0.2956]
[1753850485615,1.4638,3802.4,3802.3,0.4937]
[1753850485819,1.4638,3802.4,3802.3,1.7302]
[1753850487610,1.98993,3801.9,3801.8,0.49024208]
[1753850488015,1.98993,3801.9,3801.8,1.43354208]
[1753850488213,1.98993,3801.9,3801.8,1.92484208]
[1753850491211,1.68113,3801.9,3801.8,1.92484208]
[1753850491414,0.90917,3802.3,3802.2,0.501]
[1753850491618,1.20327,3802.3,3802.2,1.7302]
[1753850491922,1.39674,3802.5,3802.4,1.7302]
[1753850492416,0.90914,3802.5,3802.4,1.7302]
[1753850492619,0.52604,3802.6,3802.5,1.0285]
[1753850492917,1.68104,3802.6,3802.5,1.7302]
[1753850497218,0.52609,3802.2,3802.1,0.7017]
[1753850497414,0.52608,3802.3,3802.1,23.0012]
[1753850497616,0.52606,3802.4,3802.3,0.7017]
[1753850497919,0.52606,3802.4,3802.3,1.7302]
[1753850498121,1.155,3802.9,3802.8,0.7017]
[1753850498322,0.90909,3802.9,3802.8,2.30554645]
[1753850498724,0.90909,3802.9,3802.8,1.7302]
[1753850499027,0.52598,3803.0,3802.9,0.7329]
[1753850499223,0.52598,3803.0,3802.9,1.7302]
[1753850499921,1.81639827,3804.0,3803.2,0.52594]
[1753850500125,0.90899,3803.7,3803.6,0.7017]
[1753850500325,1.39659,3803.7,3803.6,1.7302]
[1753850500830,1.68089,3803.7,3803.6,1.7302]
[1753850501032,0.52589,3803.7,3803.6,1.7302]
[1753850501236,0.52586,3803.8,3803.7,1.7302]
[1753850501937,1.39656,3803.8,3803.7,1.7302]
[1753850502538,1.68086,3803.8,3803.7,1.7302]
[1753850503731,0.71256,3803.8,3803.7,1.7302]
[1753850503934,1.39656,3803.8,3803.7,1.7302]
[1753850504234,0.8707,3803.8,3803.7,1.7302]
[1753850504544,0.3831,3803.8,3803.7,1.7302]
[1753850505334,0.52586,3803.9,3803.7,1.7302]
[1753850505544,0.71256,3803.9,3803.8,1.7302]
[1753850506130,0.1867,3803.9,3803.8,1.7302]
[1753850506334,0.52584,3804.0,3803.8,6.98809999]
[1753850506541,0.52584,3804.0,3803.9,1.7302]
[1753850507837,1.39654,3804.0,3803.9,1.7302]
[1753850508037,1.68084,3804.0,3803.9,1.7302]
[1753850508236,1.98964,3804.0,3803.9,1.7302]
[1753850508834,0.52584,3804.0,3803.9,1.7302]
[1753850509240,1.39654,3804.0,3803.9,1.7302]
[1753850510343,0.52583,3804.1,3803.9,1.7302]
[1753850510644,0.52583,3804.1,3804.0,1.7302]
[1753850510849,1.39653,3804.1,3804.0,1.7302]
[1753850511047,1.68083,3804.1,3804.0,1.7302]
[1753850511343,1.97983,3804.1,3804.0,1.7302]
[1753850511543,1.97983,3804.1,3804.0,22.9932]
[1753850512140,1.97983,3804.1,3804.0,1.7302]
[1753850512346,1.97983,3804.1,3804.0,22.9932]
[1753850513947,1.68083,3804.1,3804.0,22.9932]
[1753850515449,1.97983,3804.1,3804.0,22.9932]
[1753850516251,1.68083,3804.1,3804.0,22.9932]
[1753850517749,0.52579,3804.4,3804.3,1.51159]
[1753850517945,0.52578,3804.5,3804.3,22.23504645]
[1753850518140,0.52578,3804.5,3804.4,1.7416]
[1753850518848,0.52573,3804.8,3804.7,0.6926]
[1753850519144,1.69313,3804.8,3804.7,1.7416]
[1753850521153,1.69313,3804.8,3804.7,23.0006]
[1753850521645,0.52573,3804.8,3804.7,23.0006]
[1753850521841,0.8706,3805.5,3805.4,0.4945]
[1753850522041,0.8706,3805.5,3805.4,1.7416]
[1753850522042,1.69303,3805.5,3805.4,1.7416]
[1753850522244,1.99203,3805.5,3805.4,1.7416]
[1753850522438,2.20271917,3805.5,3805.4,1.7416]
[1753850522645,2.20271917,3805.5,3805.4,0.9863]
[1753850522946,2.20271917,3805.5,3805.4,1.7416]
[1753850523337,1.69303,3805.5,3805.4,1.7416]
[1753850524539,1.41033,3805.5,3805.4,1.7416]
[1753850525051,0.77534645,3805.9,3805.4,21.9496]
[1753850525251,1.69299,3805.8,3805.7,1.7416]
[1753850525749,1.90180056,3805.8,3805.7,1.7416]
[1753850527157,2.20080056,3805.8,3805.7,1.7416]
[1753850527354,2.20080056,3805.8,3805.7,1.4492]
[1753850527652,1.90180056,3805.8,3805.7,1.7416]
[1753850528055,2.20080056,3805.8,3805.7,1.7416]
[1753850531152,2.77614701,3805.8,3805.7,1.7416]
[1753850538470,0.299,3805.5,3804.9,0.5257]
[1753850538663,1.31401,3805.7,3805.2,0.6926]
[1753850538664,2.23846,3805.3,3805.2,0.6926]
[1753850538967,2.23846,3805.3,3805.2,21.247]
[1753850539468,1.2031,3805.0,3804.9,1.4479]
[1753850539671,2.2385,3805.0,3804.9,22.6949]
[1753850539872,2.2385,3805.0,3804.9,27.95086552]
[1753850540369,2.2385,3805.0,3804.9,5.74646552]
[1753850540573,2.23853,3804.8,3804.7,1.4479]
[1753850540763,2.23853,3804.8,3804.7,22.6949]
[1753850541168,2.23853,3804.8,3804.7,22.9886]
[1753850541968,1.21943,3804.8,3804.7,22.9886]
[1753850542475,0.6937,3804.8,3804.7,22.9886]
[1753850543673,1.0021,3804.8,3804.7,22.9886]
[1753850544065,1.4347,3804.8,3804.7,22.9886]
[1753850544265,1.729,3804.8,3804.7,22.9886]
[1753850544468,1.729,3804.8,3804.7,22.9876]
[1753850544665,1.729,3804.8,3804.7,1.4479]
[1753850544867,1.729,3804.8,3804.7,21.5389]
[1753850545072,1.729,3804.8,3804.7,22.3864]
[1753850545276,1.729,3804.8,3804.7,1.4494]
[1753850546980,1.729,3804.8,3804.7,1.7402]
[1753850552293,1.729,3804.8,3804.7,22.9832]
[1753850553493,1.729,3804.8,3804.7,1.7402]
[1753850553789,1.729,3804.8,3804.7,22.9842]
[1753850554385,1.729,3804.8,3804.7,1.7402]
[1753850554588,1.729,3804.8,3804.7,22.9822]
[1753850555988,0.6937,3804.8,3804.7,22.9822]
[1753850557189,1.4347,3804.8,3804.7,22.9822]
[1753850557691,0.57534645,3805.4,3804.7,22.9822]
[1753850557893,0.52568,3805.2,3805.0,2.31584645]
[1753850558098,0.71958,3805.2,3805.1,22.2293]
[1753850558302,0.52568,3805.2,3805.1,22.6907]
[1753850558492,0.82658,3805.2,3805.1,22.9815]
[1753850558799,0.52566,3805.3,3805.1,21.9385]
[1753850559100,1.32886,3805.3,3805.2,1.7405]
[1753850559298,1.95946,3805.3,3805.2,1.7405]
[1753850560991,0.6928,3805.3,3805.2,1.7405]
[1753850561597,1.02795,3805.4,3805.3,1.7405]
[1753850561794,1.02795,3805.4,3805.3,22.9805]
[1753850562187,1.32885,3805.4,3805.3,22.9805]
[1753850563292,1.95945,3805.4,3805.3,22.9805]
[1753850563598,2.25375,3805.4,3805.3,1.7405]
[1753850563798,2.25375,3805.4,3805.3,22.6877]
[1753850565900,2.25375,3805.4,3805.3,22.9785]
[1753850569600,2.25375,3805.4,3805.3,22.6877]
[1753850570805,2.25375,3805.4,3805.3,1.4497]
[1753850571005,2.25384,3804.8,3804.7,0.6975]
[1753850571199,2.25384,3804.8,3804.7,22.2213]
[1753850571399,2.25384,3804.8,3804.7,27.90505834]
[1753850571702,2.25384,3804.8,3804.7,28.19715834]
[1753850572503,1.7281,3804.8,3804.7,28.19715834]
[1753850572700,1.4338,3804.8,3804.7,28.19715834]
[1753850572901,1.0012,3804.8,3804.7,6.96415834]
[1753850573100,1.0012,3804.8,3804.7,28.19615834]
[1753850574306,1.0012,3804.8,3804.7,6.96415834]
[1753850574603,1.0012,3804.8,3804.7,28.19515834]
[1753850574808,1.4511,3804.8,3804.7,28.19515834]
[1753850575310,0.3009,3804.8,3804.7,28.72089834]
[1753850575606,0.8155,3805.0,3804.7,28.19515834]
[1753850575804,1.0203,3805.0,3804.9,1.26854645]
[1753850576005,1.0203,3805.0,3804.9,23.50354645]
[1753850576407,0.7899,3805.0,3804.9,23.50354645]
[1753850576612,0.82098,3805.2,3805.1,1.6982]
[1753850576801,0.82098,3805.2,3805.1,22.9282]
[1753850577912,1.02578,3805.2,3805.1,22.9282]
[1753850578110,1.31558,3805.2,3805.1,22.9282]
[1753850579610,1.96938,3805.2,3805.1,22.9282]
[1753850580708,0.704,3805.2,3805.1,22.9282]
[1753850580912,0.5001,3805.2,3805.1,22.9282]
[1753850581114,0.73043,3805.5,3805.4,1.6982]
[1753850581412,0.73043,3805.5,3805.4,23.49954645]
[1753850581413,1.02573,3805.5,3805.4,23.49954645]
[1753850581614,1.31553,3805.5,3805.4,23.49954645]
[1753850581804,0.2,3805.9,3805.6,0.5256]
[1753850582005,1.42069,3805.9,3805.8,1.4133]
[1753850582202,0.2,3805.9,3805.8,22.9242]
[1753850584316,0.2048,3806.7,3806.6,1.93878]
[1753850584614,1.24529232,3806.7,3806.6,24.02302645]
[1753850584809,1.69519232,3806.7,3806.6,24.02302645]
[1753850585111,2.47529232,3806.7,3806.6,29.2780943]
[1753850585519,1.7301,3806.7,3806.6,29.2780943]
[1753850586015,1.7301,3806.7,3806.6,7.5286143]
[1753850586210,1.7301,3806.7,3806.6,28.7486143]
[1753850586519,0.5001,3806.7,3806.6,28.7486143]
[1753850586709,1.4437,3806.7,3806.6,28.7486143]
[1753850587212,1.7301,3806.7,3806.6,28.7486143]
[1753850588913,1.7301,3806.7,3806.6,28.4637143]
[1753850589513,1.7301,3806.7,3806.6,28.7486143]
[1753850591019,2.25556,3806.7,3806.6,28.7486143]
[1753850591222,1.7301,3806.7,3806.6,29.2740943]
[1753850591719,2.25549,3807.2,3807.1,1.6982]
[1753850591916,2.25549,3807.2,3807.1,22.9132]
[1753850592217,0.73019,3807.2,3807.1,22.9132]
[1753850592412,1.02549,3807.2,3807.1,22.9132]
[1753850592720,0.5001,3807.2,3807.1,22.9132]
[1753850593217,0.7899,3807.2,3807.1,22.9132]
[1753850593517,1.2398,3807.2,3807.1,22.9132]
[1753850593907,1.4437,3807.2,3807.1,22.9132]
[1753850594315,1.7301,3807.2,3807.1,22.9132]
[1753850596214,1.7301,3807.2,3807.1,22.6223]
[1753850596414,1.7301,3807.2,3807.1,1.4133]
[1753850596619,1.7301,3807.2,3807.1,22.6213]
[1753850596818,1.7301,3807.2,3807.1,22.9062]
[1753850597622,0.6951,3806.7,3806.6,1.21867]
[1753850597925,1.7301,3806.7,3806.6,28.40004344]
[1753850598124,1.7301,3806.7,3806.6,28.68494344]
[1753850598332,1.7301,3806.7,3806.6,23.43167]
[1753850598622,1.7301,3806.7,3806.6,28.68563345]
[1753850598825,0.4087,3807.2,3807.1,0.6932]
[1753850599020,1.4348,3807.2,3807.1,22.9042]
[1753850599220,1.9602,3807.2,3807.1,22.9042]
[1753850599420,2.2555,3807.2,3807.1,22.9042]
[1753850600122,1.7301,3807.2,3807.1,22.9042]
[1753850600820,1.7301,3807.2,3807.1,1.4133]
[1753850601022,1.7301,3807.2,3807.1,22.1279]
[1753850601222,1.7301,3807.2,3807.1,22.42]
[1753850601521,1.7301,3807.2,3807.1,22.6173]
[1753850601925,1.7301,3807.2,3807.1,21.6999]
[1753850602526,1.7301,3807.2,3807.1,0.3057]
[1753850602719,1.7459,3807.0,3806.9,1.4067]
[1753850602919,0.4607,3807.0,3806.1,1.0123]
[1753850603114,1.7459,3806.2,3806.1,2.21705]
[1753850603325,0.52547,3806.7,3806.2,0.52553]
[1753850603521,1.7459,3806.8,3806.7,0.6792]
[1753850603714,1.7459,3806.8,3806.7,1.4067]
[1753850604926,1.7459,3806.8,3806.7,1.6915]
[1753850605516,1.7459,3806.8,3806.7,1.4067]
[1753850606023,1.7459,3806.8,3806.7,22.6057]
[1753850607622,1.7459,3806.8,3806.7,22.8905]
[1753850609429,1.2852,3807.1,3807.0,1.6915]
[1753850609632,0.99,3807.1,3807.0,23.46484645]
[1753850609833,0.7018,3807.1,3807.0,23.46484645]
[1753850610131,1.23938,3807.3,3807.2,0.6792]
[1753850610320,1.70008,3807.3,3807.2,1.6915]
[1753850610525,0.4188,3807.3,3807.2,1.6915]
[1753850610729,1.7639,3807.3,3807.2,1.6915]
[1753850613933,0.018,3807.3,3807.2,6.94463546]
[1753850616029,0.2,3807.9,3807.8,0.72871]
[1753850616233,0.2,3807.9,3807.8,23.98415645]
[1753850616434,0.2,3807.9,3807.8,29.23729191]
[1753850616933,1.97011,3808.6,3808.5,0.6792]
[1753850617132,1.97011,3808.6,3808.5,1.6915]
[1753850617632,0.99,3808.6,3808.5,1.4067]
[1753850617835,1.7459,3808.6,3808.5,2.21672]
[1753850618031,1.7459,3808.6,3808.5,1.6915]
[1753850618234,1.7459,3808.6,3808.5,2.21672]
[1753850618639,2.27106,3809.0,3808.9,1.4067]
[1753850619040,2.27106,3809.0,3808.9,1.6915]
[1753850619334,0.52516,3809.0,3808.9,1.1208]
[1753850619640,2.27106,3809.0,3808.9,0.2875]
[1753850619842,2.27109,3808.7,3808.6,0.2875]
[1753850620036,2.27109,3808.7,3808.6,1.1208]
[1753850620231,1.3127,3809.5,3808.6,7.4674909]
[1753850620439,0.4956,3809.0,3808.9,1.53934645]
[1753850620936,0.52512,3809.2,3809.0,0.7275]
[1753850621137,0.301,3809.3,3809.2,1.6915]
[1753850621439,0.301,3809.3,3809.2,2.26684645]
[1753850621637,0.2,3809.9,3809.2,22.77364645]
[1753850621834,0.3946,3809.9,3809.8,2.26684645]
[1753850622029,1.4445,3809.9,3809.8,2.26684645]
[1753850622244,1.9459,3809.9,3809.8,2.26684645]
[1753850622632,1.9459,3809.9,3809.8,7.51639695]
[1753850622832,0.52501,3810.0,3809.9,0.6792]
[1753850623040,1.88756645,3810.9,3810.0,0.7275]
[1753850623235,1.4449,3810.1,3810.0,2.26684645]
[1753850623642,1.7459,3810.1,3810.0,28.69925917]
[1753850623943,1.2852,3810.1,3810.0,28.69925917]
[1753850624243,0.7018,3810.1,3810.0,28.69925917]
[1753850625345,1.7459,3810.5,3810.4,2.21645]
[1753850625545,1.2852,3810.5,3810.4,2.79179645]
[1753850625844,1.2852,3810.5,3810.4,29.21907139]
[1753850625845,0.7018,3810.5,3810.4,29.21907139]
[1753850626343,0.7018,3810.7,3810.6,2.21643]
[1753850626644,1.51488,3810.9,3810.8,0.6792]
[1753850626848,0.7559,3811.8,3811.3,0.7275]
[1753850627047,1.7459,3811.4,3811.3,1.6915]
[1753850627239,1.7459,3811.4,3811.3,22.8685]
[1753850627544,0.7018,3811.4,3811.3,28.64053914]
[1753850627742,1.6449,3811.9,3811.8,0.9651]
[1753850627945,1.9459,3811.9,3811.8,1.4067]
[1753850628347,1.9459,3811.9,3811.8,6.36759617]
[1753850628749,1.9459,3811.9,3811.8,6.93829617]
[1753850629348,1.4852,3811.9,3811.8,6.93829617]
[1753850629545,0.6956,3811.9,3811.8,6.93829617]
[1753850629749,1.197,3811.9,3811.8,6.93829617]
[1753850629950,1.9459,3811.9,3811.8,6.93829617]
[1753850630146,1.9459,3811.9,3811.8,28.11129617]
[1753850630555,1.6507,3811.9,3811.8,28.11129617]
[1753850630758,1.9459,3811.9,3811.8,28.11129617]
[1753850633354,1.9459,3811.9,3811.8,21.168]
[1753850633553,1.9459,3811.9,3811.1,1.4075]
[1753850633554,1.7541,3811.2,3811.1,1.4075]
[1753850633756,1.7541,3811.2,3811.1,22.5745]
[1753850633960,1.7541,3811.2,3811.1,27.82129617]
[1753850634160,1.7541,3811.2,3811.1,5.73199617]
[1753850634359,1.7541,3811.2,3811.1,26.89599617]
[1753850634853,1.7541,3811.2,3811.1,5.73199617]
[1753850635058,1.7541,3810.6,3810.5,0.81543]
[1753850635259,1.7541,3810.6,3810.5,23.09643]
[1753850635454,1.7541,3810.6,3810.5,28.91953631]
[1753850635660,1.7541,3810.6,3810.5,23.67177645]
[1753850635854,1.7541,3810.6,3810.5,23.14684645]
[1753850636055,1.7541,3810.6,3810.5,28.39460631]
[1753850636560,1.7541,3810.6,3810.5,7.23060631]
[1753850636758,1.7541,3810.6,3810.5,0.6786]
[1753850636958,1.7541,3810.6,3810.5,0.4852]
[1753850637161,0.4961,3810.1,3810.0,1.0089]
[1753850637461,1.7541,3810.1,3810.0,23.67084645]
[1753850637960,1.7541,3810.1,3810.0,29.20743261]
[1753850638161,1.004,3810.1,3810.0,29.20743261]
[1753850641762,0.5008,3810.1,3810.0,29.20743261]
[1753850643050,1.7541,3810.4,3810.3,1.20357]
[1753850643250,1.3017,3810.4,3810.3,23.95881645]
[1753850643462,0.6999,3810.4,3810.3,23.95881645]
[1753850645264,0.5008,3810.4,3810.3,23.95881645]
[1753850645765,1.7541,3811.0,3810.9,1.93238]
[1753850646065,1.7541,3811.0,3810.9,2.50772645]
[1753850646263,1.7541,3811.0,3810.8,0.52489]
[1753850646466,1.7541,3810.8,3810.7,21.68691]
[1753850646658,1.7541,3810.8,3810.7,26.93494526]
[1753850647865,1.7541,3810.8,3810.7,28.34244526]
[1753850648060,1.76344788,3810.8,3810.7,28.34244526]
[1753850649965,1.76344788,3810.8,3810.7,7.18044526]
[1753850651363,1.76344788,3810.8,3810.7,5.53853526]
[1753850651662,1.4453,3810.3,3810.1,0.52499]
[1753850651867,1.4453,3810.1,3810.0,21.161]
[1753850652163,1.0589,3810.0,3809.8,26.93334069]
[1753850652362,1.7541,3809.9,3809.8,28.34084069]
[1753850652556,1.7541,3809.9,3809.8,23.66787645]
[1753850652759,1.7541,3809.9,3809.8,28.91715139]
[1753850654465,1.7541,3809.9,3809.8,29.20515139]
[1753850654869,1.7541,3810.2,3810.1,2.22049]
[1753850655070,1.7541,3810.2,3810.1,23.95583645]
[1753850661362,1.7541,3810.2,3810.1,23.66783645]
[1753850661571,1.7541,3810.2,3810.1,23.36893645]
[1753850661771,1.7541,3810.2,3810.1,22.93893645]
[1753850662466,1.7541,3810.2,3810.1,23.69373645]
[1753850663973,1.7541,3810.2,3810.1,23.99853645]
[1753850664174,1.7119,3810.6,3810.5,0.52494]
[1753850664367,1.7119,3810.6,3810.5,2.52038645]
[1753850664568,1.7119,3810.6,3810.5,2.82518645]
[1753850669077,1.7119,3810.6,3810.5,2.52038645]
[1753850669586,2.23683,3810.6,3810.5,0.2801]
[1753850669981,1.7119,3810.5,3810.4,0.52494]
[1753850670377,1.7119,3810.5,3810.4,5.77352616]
[1753850671680,1.7119,3810.5,3810.4,6.80842616]
[1753850672082,0.6792,3810.5,3810.4,6.05362616]
[1753850672376,1.7119,3810.5,3810.4,7.49842616]
[1753850673273,1.7119,3810.5,3810.1,0.52499]
[1753850673482,1.7119,3810.2,3810.1,0.52499]
[1753850673678,1.7119,3810.2,3810.1,5.7737139]
[1753850674485,1.7119,3810.2,3810.1,6.0538139]
[1753850674688,1.7119,3810.2,3810.1,6.5005139]
[1753850674984,1.7119,3810.2,3810.1,7.1938139]
[1753850675577,1.7119,3810.2,3810.1,6.3607239]
[1753850675782,1.7119,3810.2,3810.1,5.7205239]
[1753850676484,1.7119,3810.2,3810.1,5.5288239]
[1753850677787,1.7119,3810.2,3810.1,5.7737139]
[1753850678392,1.7119,3810.2,3810.1,7.1938139]
[1753850678792,1.7119,3810.2,3810.1,6.6688239]
[1753850679692,0.52497,3810.3,3810.1,5.2487239]
[1753850679889,1.2343,3810.6,3810.5,2.24983]
[1753850680094,1.5143,3810.6,3810.5,2.82517645]
[1753850680294,1.7119,3810.6,3810.5,2.82517645]
[1753850680592,1.7119,3810.6,3810.5,2.30024645]
[1753850680889,1.7119,3810.6,3810.5,1.7249]
[1753850683596,1.7119,3810.6,3810.5,2.24984]
[1753850684295,1.7119,3810.6,3810.5,1.7249]
[1753850686289,1.7119,3810.6,3810.5,1.112]
[1753850686691,1.7119,3810.6,3810.5,1.4201]
[1753850688594,1.7119,3810.6,3810.5,1.112]
[1753850688896,1.7119,3810.6,3810.5,1.4201]